fUST/lending_fUST_20250120
["ID","MTS","AMOUNT","RATE_DAILY","PERIOD"]
[349626033,1737333051939,-500.0,0.0002315,3]
[349626034,1737333051949,-515.59,0.0002315,2]
[349626035,1737333051958,-961.92,0.0002315,3]
[349626036,1737333051968,-500.0,0.0002315,3]
[349626037,1737333051978,-500.0,0.0002315,3]
[349626038,1737333051987,-2346.91,0.0002315,3]
[349626039,1737333051997,-500.0,0.0002315,3]
[349626040,1737333052008,-500.0,0.0002315,3]
[349626041,1737333052018,-2608.26,0.0002315,3]
[349626042,1737333052027,-6961.44,0.0002315,3]
[349626043,1737333052037,-3990.29,0.0002315,3]
[349626044,1737333052047,-500.0,0.0002315,3]
[349626045,1737333052056,-1197.13,0.0002315,3]
[349626046,1737333052066,-864.16,0.0002315,3]
[349626047,1737333052075,-251.802606,0.0002315,7]
[349626048,1737333052090,-251.802606,0.0002315,7]
[349626049,1737333052104,-500.0,0.0002315,3]
[349626050,1737333052114,-500.0,0.0002315,3]
[349626051,1737333052124,-500.0,0.0002315,3]
[349626052,1737333052135,-930.73,0.0002315,3]
[349626053,1737333052146,-739.13,0.0002315,3]
[349626054,1737333052156,-718.912222,0.0002315,7]
[349626055,1737333052166,-500.0,0.0002315,3]
[349626056,1737333052176,-718.912222,0.0002315,7]
[349626057,1737333052186,-500.0,0.0002315,3]
[349626058,1737333052195,-908.08,0.0002315,3]
[349626059,1737333052205,-4067.72,0.0002315,3]
[349626060,1737333052216,-2232.76,0.0002315,3]
[349626061,1737333052226,-632.41,0.0002315,3]
[349626062,1737333052236,-1943.69,0.0002315,3]
[349626063,1737333052246,-10432.25,0.0002315,3]
[349626064,1737333052256,-150.91391749,0.0002315,3]
[349626065,1737333052368,-349.08608251,0.0002315,3]
[349626066,1737333052378,-500.0,0.0002315,3]
[349626067,1737333052390,-500.0,0.0002315,3]
[349626068,1737333052402,-1453.38,0.0002315,3]
[349626069,1737333052412,-500.0,0.0002315,3]
[349626070,1737333052423,-395.0,0.00023187,2]
[349626071,1737333052434,-2063.0,0.00023187,2]
[349626072,1737333052444,-536.0,0.00023187,2]
[349626073,1737333052454,-2307.0,0.00023187,2]
[349626074,1737333052465,-8841.03390737,0.000232,14]
[349626075,1737333052478,-2055.11609263,0.000232,14]
[349626076,1737333052487,-172.56390737,0.000232,2]
[349626077,1737333052499,-441.30958312,0.000232,2]
[349626078,1737333105961,4148.46363163,0.000236,120]
[349626079,1737333231255,3318.77090531,0.000236,120]
[349626080,1737333424112,164.733783,0.00013973,2]
[349626082,1737333535064,1518.34,0.00024,120]
[349626086,1737333744521,2655.01672425,0.000236,120]
[349626091,1737333899060,983.9,0.000167,2]
[349626169,1737334232872,-525.86761626,0.000219,2]
[349626171,1737334232882,-200.0,0.000219,2]
[349626173,1737334232892,-153.402,0.00021916,2]
[349626175,1737334232901,-300.0,0.00021916,2]
[349626177,1737334232911,-157.86,0.00021917,2]
[349626179,1737334232920,-500.0,0.00021917,2]
[349626181,1737334232929,-500.0,0.00021917,3]
[349626183,1737334232938,-500.0,0.00021917,3]
[349626185,1737334232948,-500.0,0.00021917,3]
[349626187,1737334232957,-500.0,0.00021917,3]
[349626188,1737334232966,-500.0,0.00021917,3]
[349626190,1737334232976,-500.0,0.00021917,3]
[349626192,1737334232990,-500.0,0.00021917,3]
[349626194,1737334233000,-500.0,0.00021917,3]
[349626196,1737334233009,-159.4143493,0.00021917,3]
[349626198,1737334233022,-340.5856507,0.00021917,3]
[349626200,1737334233034,-500.0,0.00021917,3]
[349626202,1737334233045,-261.5968613,0.00021917,3]
[349626252,1737334238624,-238.4031387,0.00021917,3]
[349626254,1737334238635,-500.0,0.00021917,3]
[349626256,1737334238645,-500.0,0.00021917,3]
[349626258,1737334238655,-500.0,0.00021917,3]
[349626260,1737334238665,-500.0,0.00021917,3]
[349626262,1737334238675,-500.0,0.00021917,3]
[349626264,1737334238685,-500.0,0.00021917,3]
[349626266,1737334238694,-500.0,0.00021917,3]
[349626268,1737334238704,-500.0,0.00021917,3]
[349626270,1737334238714,-500.0,0.00021917,3]
[349626272,1737334238724,-417.85586803,0.00021917,2]
[349626274,1737334238734,-500.0,0.00021917,3]
[349626276,1737334238753,-347.81996421,0.00021917,3]
[349626278,1737334238763,-500.0,0.00021917,3]
[349626280,1737334238772,-500.0,0.00021917,3]
[349626296,1737334238934,-500.0,0.00021917,3]
[349626299,1737334238946,-500.0,0.00021917,3]
[349626301,1737334238956,-500.0,0.00021917,3]
[349626303,1737334238966,-500.0,0.00021917,3]
[349626305,1737334238976,-500.0,0.00021917,3]
[349626307,1737334238986,-500.0,0.00021917,3]
[349626308,1737334239001,-500.0,0.00021917,3]
[349626310,1737334239011,-500.0,0.00021917,3]
[349626312,1737334239021,-500.0,0.00021917,3]
[349626314,1737334239030,-500.0,0.00021917,3]
[349626317,1737334239041,-500.0,0.00021917,3]
[349626318,1737334239050,-500.0,0.00021917,3]
[349626320,1737334239059,-442.30742774,0.00021917,3]
[349626322,1737334239069,-549.89,0.00021917,3]
[349626324,1737334239078,-306.79407296,0.00021917,3]
[349626326,1737334239088,-184.22,0.00021917,3]
[349626328,1737334239097,-500.0,0.00021917,2]
[349626330,1737334239107,-501.53385779,0.00021917,3]
[349626332,1737334239116,-561.12,0.00021917,3]
[349626334,1737334239125,-500.0,0.00021917,3]
[349626336,1737334239135,-500.0,0.00021917,3]
[349626338,1737334239144,-500.0,0.00021917,3]
[349626340,1737334239153,-500.0,0.00021917,3]
[349626342,1737334239162,-1369.03,0.00021917,3]
[349626345,1737334239172,-3214.83,0.00021917,3]
[349626347,1737334239182,-1521.48,0.00021917,3]
[349626348,1737334239191,-500.0,0.00021917,3]
[349626351,1737334239201,-2690.43,0.00021917,3]
[349626353,1737334239211,-500.0,0.00021917,3]
[349626355,1737334239220,-500.0,0.00021917,3]
[349626357,1737334239231,-500.0,0.00021917,3]
[349626359,1737334239241,-500.0,0.00021917,3]
[349626361,1737334239255,-698.33,0.00021917,3]
[349626363,1737334239264,-500.0,0.00021917,3]
[349626365,1737334239274,-500.0,0.00021917,3]
[349626367,1737334239283,-504.40773877,0.00021917,3]
[349626369,1737334239294,-500.0,0.00021917,3]
[349626371,1737334239304,-500.0,0.00021917,3]
[349626373,1737334239314,-398.23858735,0.00021917,3]
[349626375,1737334239324,-565.90550694,0.00021917,3]
[349626377,1737334239334,-500.0,0.00021917,3]
[349626379,1737334239344,-504.1,0.00021917,3]
[349626381,1737334239353,-500.0,0.00021917,3]
[349626383,1737334239362,-500.0,0.00021917,3]
[349626385,1737334239372,-500.0,0.00021917,3]
[349626387,1737334239382,-500.0,0.00021917,3]
[349626389,1737334239391,-500.0,0.00021917,3]
[349626391,1737334239402,-500.0,0.00021917,3]
[349626393,1737334239411,-500.0,0.00021917,3]
[349626395,1737334239421,-500.0,0.00021917,3]
[349626397,1737334239431,-500.0,0.00021917,3]
[349626399,1737334239441,-500.0,0.00021917,3]
[349626401,1737334239451,-500.0,0.00021917,3]
[349626403,1737334239460,-500.0,0.00021917,3]
[349626405,1737334239470,-500.0,0.00021917,3]
[349626407,1737334239479,-581.13,0.00021917,3]
[349626409,1737334239489,-500.0,0.00021917,3]
[349626411,1737334239505,-500.0,0.00021917,3]
[349626413,1737334239515,-500.0,0.00021917,3]
[349626415,1737334239525,-6085.48,0.00021917,3]
[349626417,1737334239534,-2372.84,0.00021917,3]
[349626419,1737334239544,-500.0,0.00021917,3]
[349626421,1737334239553,-500.0,0.00021917,3]
[349626423,1737334239563,-500.0,0.00021917,3]
[349626425,1737334239573,-500.0,0.00021917,2]
[349626427,1737334239582,-500.0,0.00021917,3]
[349626428,1737334239592,-500.0,0.00021917,3]
[349626430,1737334239601,-500.0,0.00021917,3]
[349626432,1737334239610,-500.0,0.00021917,3]
[349626433,1737334239620,-500.0,0.00021917,3]
[349626435,1737334239629,-565.49,0.00021917,3]
[349626437,1737334239639,-1261.42,0.00021917,3]
[349626439,1737334239649,-500.0,0.00021917,3]
[349626440,1737334239659,-500.0,0.00021917,3]
[349626442,1737334239669,-1363.71,0.00021917,3]
[349626444,1737334239680,-500.0,0.00021917,3]
[349626446,1737334239690,-500.0,0.00021917,3]
[349626448,1737334239699,-500.0,0.00021917,3]
[349626449,1737334239708,-500.0,0.00021917,3]
[349626451,1737334239718,-500.0,0.00021917,3]
[349626453,1737334239728,-500.0,0.00021917,3]
[349626455,1737334239738,-500.0,0.00021917,3]
[349626456,1737334239754,-500.0,0.00021917,3]
[349626458,1737334239763,-847.8,0.00021917,3]
[349626460,1737334239772,-666.685,0.0002204,2]
[349626462,1737334239782,-500.0,0.00022054,2]
[349626463,1737334239795,-500.0,0.00022054,3]
[349626465,1737334239805,-500.0,0.00022054,3]
[349626467,1737334239814,-500.0,0.00022054,2]
[349626469,1737334239824,-561.12,0.00022054,3]
[349626471,1737334239834,-500.0,0.00022054,3]
[349626472,1737334239844,-500.0,0.00022054,3]
[349626474,1737334239854,-500.0,0.00022054,3]
[349626476,1737334239864,-500.0,0.00022054,3]
[349626478,1737334239875,-1369.03,0.00022054,3]
[349626480,1737334239885,-3214.83,0.00022054,3]
[349626482,1737334239895,-1521.48,0.00022054,3]
[349626483,1737334239904,-500.0,0.00022054,3]
[349626485,1737334239914,-2690.43,0.00022054,3]
[349626487,1737334239924,-698.33,0.00022054,3]
[349626489,1737334239934,-500.0,0.00022054,3]
[349626490,1737334239944,-504.1,0.00022054,3]
[349626492,1737334239954,-500.0,0.00022054,3]
[349626494,1737334239964,-500.0,0.00022054,3]
[349626496,1737334239974,-500.0,0.00022054,3]
[349626498,1737334239985,-500.0,0.00022054,3]
[349626499,1737334239998,-581.13,0.00022054,3]
[349626501,1737334240009,-6085.48,0.00022054,3]
[349626503,1737334240019,-2372.84,0.00022054,3]
[349626504,1737334240029,-500.0,0.00022054,3]
[349626506,1737334240038,-500.0,0.00022054,3]
[349626509,1737334240047,-1261.42,0.00022054,3]
[349626511,1737334240056,-565.49,0.00022054,3]
[349626512,1737334240066,-500.0,0.00022054,3]
[349626514,1737334240075,-500.0,0.00022054,3]
[349626516,1737334240085,-1363.71,0.00022054,3]
[349626518,1737334240094,-256.99,0.00022054,3]
[349626519,1737334240103,-500.0,0.00022054,3]
[349626521,1737334240112,-847.8,0.00022054,3]
[349626523,1737334240122,-1588.71730629,0.0002216,2]
[349626525,1737334240131,-500.0,0.00022191,3]
[349626527,1737334240141,-365.93739793,0.00022191,3]
[349626528,1737334240151,-500.0,0.00022191,2]
[349626530,1737334240160,-561.12,0.00022191,3]
[349626532,1737334240169,-500.0,0.00022191,3]
[349626533,1737334240179,-500.0,0.00022191,3]
[349626535,1737334240188,-500.0,0.00022191,3]
[349626537,1737334240198,-500.0,0.00022191,3]
[349626539,1737334240208,-1369.03,0.00022191,3]
[349626540,1737334240217,-3214.83,0.00022191,3]
[349626542,1737334240226,-1521.48,0.00022191,3]
[349626543,1737334240236,-500.0,0.00022191,3]
[349626545,1737334240249,-2690.43,0.00022191,3]
[349626547,1737334240258,-698.33,0.00022191,3]
[349626549,1737334240268,-500.0,0.00022191,3]
[349626552,1737334240277,-504.1,0.00022191,3]
[349626554,1737334240287,-500.0,0.00022191,3]
[349626556,1737334240297,-500.0,0.00022191,3]
[349626558,1737334240306,-500.0,0.00022191,3]
[349626560,1737334240315,-581.13,0.00022191,3]
[349626561,1737334240325,-6085.48,0.00022191,3]
[349626563,1737334240334,-2372.84,0.00022191,3]
[349626565,1737334240343,-500.0,0.00022191,3]
[349626567,1737334240353,-500.0,0.00022191,3]
[349626569,1737334240363,-1261.42,0.00022191,3]
[349626571,1737334240372,-565.49,0.00022191,3]
[349626572,1737334240382,-500.0,0.00022191,3]
[349626574,1737334240392,-628.51,0.00022191,3]
[349626576,1737334240402,-1363.71,0.00022191,3]
[349626578,1737334240412,-500.0,0.00022191,3]
[349626580,1737334240423,-847.8,0.00022191,3]
[349626581,1737334240433,-611.10034915,0.00022255,2]
[349626583,1737334240442,-500.0,0.00022328,3]
[349626585,1737334240453,-500.0,0.00022328,2]
[349626587,1737334240462,-561.12,0.00022328,3]
[349626589,1737334240472,-500.0,0.00022328,3]
[349626590,1737334240482,-500.0,0.00022328,3]
[349626592,1737334240492,-500.0,0.00022328,3]
[349626594,1737334240505,-500.0,0.00022328,3]
[349626596,1737334240516,-1369.03,0.00022328,3]
[349626598,1737334240527,-3214.83,0.00022328,3]
[349626600,1737334240537,-1521.48,0.00022328,3]
[349626601,1737334240546,-500.0,0.00022328,3]
[349626603,1737334240556,-2690.43,0.00022328,3]
[349626605,1737334240566,-698.33,0.00022328,3]
[349626607,1737334240576,-500.0,0.00022328,3]
[349626609,1737334240586,-504.1,0.00022328,3]
[349626611,1737334240596,-500.0,0.00022328,3]
[349626612,1737334240606,-500.0,0.00022328,3]
[349626614,1737334240616,-500.0,0.00022328,3]
[349626616,1737334240625,-581.13,0.00022328,3]
[349626618,1737334240635,-6085.48,0.00022328,3]
[349626620,1737334240644,-2372.84,0.00022328,3]
[349626621,1737334240654,-500.0,0.00022328,3]
[349626623,1737334240665,-500.0,0.00022328,3]
[349626625,1737334240675,-565.49,0.00022328,3]
[349626627,1737334240684,-1261.42,0.00022328,3]
[349626628,1737334240693,-500.0,0.00022328,3]
[349626630,1737334240703,-1363.71,0.00022328,3]
[349626632,1737334240713,-500.0,0.00022328,3]
[349626634,1737334240723,-847.8,0.00022328,3]
[349626636,1737334240732,-707.1551998,0.00022329,2]
[349626638,1737334240742,-705.4727583,0.00022329,2]
[349626639,1737334240757,-353.5775999,0.00022329,2]
[349626641,1737334240767,-200.77,0.00022465,3]
[349626643,1737334240776,-500.0,0.00022465,2]
[349626644,1737334240788,-561.12,0.00022465,3]
[349626646,1737334240798,-500.0,0.00022465,3]
[349626648,1737334240809,-500.0,0.00022465,3]
[349626649,1737334240819,-500.0,0.00022465,3]
[349626651,1737334240829,-500.0,0.00022465,3]
[349626653,1737334240839,-1369.03,0.00022465,3]
[349626655,1737334240849,-3214.83,0.00022465,3]
[349626656,1737334240859,-1521.48,0.00022465,3]
[349626658,1737334240869,-500.0,0.00022465,3]
[349626660,1737334240878,-2690.43,0.00022465,3]
[349626662,1737334240888,-698.33,0.00022465,3]
[349626664,1737334240898,-500.0,0.00022465,3]
[349626665,1737334240907,-504.1,0.00022465,3]
[349626667,1737334240916,-500.0,0.00022465,3]
[349626669,1737334240926,-500.0,0.00022465,3]
[349626671,1737334240936,-500.0,0.00022465,3]
[349626673,1737334240947,-581.13,0.00022465,3]
[349626675,1737334240956,-6085.48,0.00022465,3]
[349626676,1737334240966,-2372.84,0.00022465,3]
[349626678,1737334240976,-500.0,0.00022465,3]
[349626680,1737334240986,-500.0,0.00022465,3]
[349626682,1737334240997,-565.49,0.00022465,3]
[349626683,1737334241007,-1261.42,0.00022465,3]
[349626685,1737334241018,-500.0,0.00022465,3]
[349626687,1737334241027,-1363.71,0.00022465,3]
[349626689,1737334241036,-500.0,0.00022465,3]
[349626691,1737334241046,-847.8,0.00022465,3]
[349626692,1737334241056,-1161.46,0.000225,2]
[349626694,1737334241066,-500.0,0.00022544,2]
[349626696,1737334241075,-500.0,0.00022602,2]
[349626698,1737334241085,-561.12,0.00022602,3]
[349626700,1737334241095,-500.0,0.00022602,3]
[349626702,1737334241104,-168.73224119,0.00022602,3]
[349626703,1737334241114,-500.0,0.00022602,3]
[349626705,1737334241123,-500.0,0.00022602,3]
[349626707,1737334241133,-1369.03,0.00022602,3]
[349626709,1737334241143,-3214.83,0.00022602,3]
[349626711,1737334241153,-1521.48,0.00022602,3]
[349626713,1737334241163,-500.0,0.00022602,3]
[349626715,1737334241173,-2690.43,0.00022602,3]
[349626716,1737334241183,-698.33,0.00022602,3]
[349626718,1737334241193,-500.0,0.00022602,3]
[349626720,1737334241203,-504.1,0.00022602,3]
[349626722,1737334241213,-500.0,0.00022602,3]
[349626724,1737334241223,-500.0,0.00022602,3]
[349626734,1737334241232,-500.0,0.00022602,3]
[349626736,1737334241356,-581.13,0.00022602,3]
[349626738,1737334241367,-6085.48,0.00022602,3]
[349626740,1737334241377,-2372.84,0.00022602,3]
[349626742,1737334241387,-500.0,0.00022602,3]
[349626744,1737334241396,-500.0,0.00022602,3]
[349626746,1737334241406,-565.49,0.00022602,3]
[349626748,1737334241415,-1261.42,0.00022602,3]
[349626750,1737334241424,-500.0,0.00022602,3]
[349626752,1737334241434,-1363.71,0.00022602,3]
[349626754,1737334241444,-500.0,0.00022602,3]
[349626756,1737334241453,-847.8,0.00022602,3]
[349626758,1737334241463,-154.0316351,0.00022603,2]
[349626760,1737334241474,-276.4030274,0.00022603,2]
[349626762,1737334241484,-153.0,0.00022603,2]
[349626765,1737334241498,-153.0,0.00022603,2]
[349626766,1737334241508,-430.1077276,0.00022603,2]
[349626768,1737334241518,-153.0,0.00022603,2]
[349626770,1737334241528,-215.0538638,0.00022603,2]
[349626772,1737334241538,-306.0,0.00022603,2]
[349626773,1737334241547,-500.0,0.00022739,2]
[349626774,1737334241558,-561.12,0.00022739,3]
[349626775,1737334241569,-500.0,0.00022739,3]
[349626776,1737334241579,-500.0,0.00022739,3]
[349626777,1737334241588,-642.91,0.00022739,3]
[349626778,1737334241599,-1369.03,0.00022739,3]
[349626779,1737334241609,-3214.83,0.00022739,3]
[349626780,1737334241618,-1521.48,0.00022739,3]
[349626781,1737334241628,-471.08,0.00022739,3]
[349626782,1737334241638,-2690.43,0.00022739,3]
[349626783,1737334241648,-698.33,0.00022739,3]
[349626784,1737334241658,-500.0,0.00022739,3]
[349626785,1737334241668,-504.1,0.00022739,3]
[349626786,1737334241678,-500.0,0.00022739,3]
[349626787,1737334241688,-255.54618938,0.00022739,3]
[349626788,1737334241700,-622.35,0.00022739,3]
[349626789,1737334241710,-581.13,0.00022739,3]
[349626790,1737334241720,-6085.48,0.00022739,3]
[349626791,1737334241730,-2372.84,0.00022739,3]
[349626792,1737334241742,-500.0,0.00022739,3]
[349626793,1737334241757,-500.0,0.00022739,3]
[349626794,1737334241767,-565.49,0.00022739,3]
[349626795,1737334241779,-1261.42,0.00022739,3]
[349626797,1737334241790,-459.76047729,0.00022739,3]
[349626798,1737334241800,-1363.71,0.00022739,3]
[349626800,1737334241810,-233.93,0.00022739,3]
[349626802,1737334241820,-847.8,0.00022739,3]
[349626804,1737334241830,-263.0,0.000228,9]
[349626806,1737334241841,-500.0,0.00022876,2]
[349626808,1737334241851,-561.12,0.00022876,3]
[349626810,1737334241861,-500.0,0.00022876,3]
[349626812,1737334241871,-500.0,0.00022876,3]
[349626814,1737334241881,-1369.03,0.00022876,3]
[349626816,1737334241891,-3214.83,0.00022876,3]
[349626818,1737334241902,-1521.48,0.00022876,3]
[349626820,1737334241911,-2690.43,0.00022876,3]
[349626822,1737334241922,-698.33,0.00022876,3]
[349626824,1737334241932,-500.0,0.00022876,3]
[349626826,1737334241943,-504.1,0.00022876,3]
[349626828,1737334241954,-500.0,0.00022876,3]
[349626830,1737334241964,-581.13,0.00022876,3]
[349626832,1737334241973,-6085.48,0.00022876,3]
[349626834,1737334241983,-2372.84,0.00022876,3]
[349626836,1737334241999,-500.0,0.00022876,3]
[349626838,1737334242010,-500.0,0.00022876,3]
[349626840,1737334242021,-565.49,0.00022876,3]
[349626842,1737334242031,-1261.42,0.00022876,3]
[349626844,1737334242043,-1363.71,0.00022876,3]
[349626846,1737334242054,-847.8,0.00022876,3]
[349626848,1737334242064,-500.0,0.00022879,2]
[349626850,1737334242074,-805.54421122,0.000229,3]
[349626852,1737334242084,-805.544211,0.00022969,3]
[349626854,1737334242094,-151.0,0.00022999,7]
[349626856,1737334242104,-7438.69753278,0.00023,2]
[349626858,1737334242114,-6948.54,0.00023,7]
[349626860,1737334242123,-7438.69753278,0.00023,3]
[349626862,1737334242133,-200.0,0.00023,2]
[349626864,1737334242142,-200.0,0.00023,3]
[349626866,1737334242152,-200.0,0.00023,4]
[349626868,1737334242162,-200.0,0.00023,14]
[349626870,1737334242172,-200.0,0.00023,21]
[349626872,1737334242181,-200.0,0.00023,14]
[349626874,1737334242191,-158.0,0.00023,14]
[349626876,1737334242200,-158.0,0.00023,15]
[349626878,1737334242210,-158.0452754,0.00023,16]
[349626881,1737334242219,-500.0,0.00023013,2]
[349626883,1737334242229,-561.12,0.00023013,3]
[349626884,1737334242239,-500.0,0.00023013,3]
[349626886,1737334242253,-500.0,0.00023013,3]
[349626888,1737334242263,-1369.03,0.00023013,3]
[349626890,1737334242273,-3214.83,0.00023013,3]
[349626892,1737334242282,-1521.48,0.00023013,3]
[349626894,1737334242292,-2690.43,0.00023013,3]
[349626896,1737334242301,-698.33,0.00023013,3]
[349626898,1737334242310,-500.0,0.00023013,3]
[349626900,1737334242319,-504.1,0.00023013,3]
[349626902,1737334242329,-500.0,0.00023013,3]
[349626904,1737334242339,-581.13,0.00023013,3]
[349626906,1737334242349,-6085.48,0.00023013,3]
[349626908,1737334242358,-2372.84,0.00023013,3]
[349626910,1737334242368,-500.0,0.00023013,3]
[349626912,1737334242378,-500.0,0.00023013,3]
[349626914,1737334242387,-565.49,0.00023013,3]
[349626916,1737334242397,-1261.42,0.00023013,3]
[349626919,1737334242407,-1363.71,0.00023013,3]
[349626920,1737334242416,-847.8,0.00023013,3]
[349626923,1737334242426,-805.544211,0.00023038,3]
[349626925,1737334242435,-2063.0,0.0002309,2]
[349626927,1737334242444,-2307.0,0.0002309,2]
[349626929,1737334242460,-395.0,0.0002309,2]
[349626932,1737334242475,-1000.0,0.00023092,2]
[349626934,1737334242489,-2000.0,0.000231,5]
[349626937,1737334242507,-300.0,0.000231,10]
[349626939,1737334242521,-805.544211,0.00023107,3]
[349626942,1737334242532,-151.0,0.00023149,7]
[349626944,1737334242545,-500.0,0.0002315,2]
[349626946,1737334242559,-561.12,0.0002315,3]
[349626949,1737334242572,-500.0,0.0002315,3]
[349626951,1737334242585,-500.0,0.0002315,3]
[349626953,1737334242599,-1369.03,0.0002315,3]
[349626956,1737334242613,-3214.83,0.0002315,3]
[349626958,1737334242627,-624.46673427,0.0002315,3]
[349626962,1737334242654,-897.01326573,0.0002315,3]
[349626965,1737334242668,-2690.43,0.0002315,3]
[349626967,1737334242681,-698.33,0.0002315,3]
[349626969,1737334242693,-500.0,0.0002315,3]
[349626971,1737334242706,-504.1,0.0002315,3]
[349626974,1737334242719,-500.0,0.0002315,3]
[349626976,1737334242733,-581.13,0.0002315,3]
[349626979,1737334242751,-5368.02441551,0.0002315,3]
[349626981,1737334242767,-717.45558449,0.0002315,3]
[349626984,1737334242781,-744.09314413,0.0002315,3]
[349626986,1737334242797,-1628.74685587,0.0002315,3]
[349626988,1737334242808,-500.0,0.0002315,3]
[349626991,1737334242819,-615.56,0.0002315,3]
[349626993,1737334242832,-565.49,0.0002315,3]
[349626995,1737334242844,-1261.42,0.0002315,3]
[349626997,1737334242858,-1363.71,0.0002315,3]
[349627000,1737334242871,-847.8,0.0002315,3]
[349627002,1737334242884,-306.6911881,0.00023151,2]
[349627004,1737334242898,-805.544211,0.00023176,3]
[349627007,1737334242911,-284.16564112,0.00023199,2]
[349627009,1737334242925,-18375.09650951,0.000232,2]
[349627012,1737334242938,-2000.0,0.000232,5]
[349627014,1737334242951,-620.0,0.000232,2]
[349627017,1737334242965,-649.99937336,0.00023231,2]
[349627019,1737334242979,-805.544211,0.00023245,3]
[349627022,1737334242991,-500.0,0.00023287,2]
[349627025,1737334243006,-151.0,0.00023287,7]
[349627028,1737334243016,-561.12,0.00023287,3]
[349627030,1737334243026,-378.44,0.00023287,3]
[349627032,1737334243038,-507.136472,0.00023287,7]
[349627034,1737334243051,-507.136472,0.00023287,7]
[349627037,1737334243063,-151.0,0.00023287,7]
[349627039,1737334243078,-151.0,0.00023287,7]
[349627044,1737334243091,-315.62,0.00023287,3]
[349627047,1737334243102,-1369.03,0.00023287,3]
[349627050,1737334243112,-1319.078106,0.00023287,7]
[349627053,1737334243123,-151.0,0.00023287,7]
[349627056,1737334243135,-1319.078106,0.00023287,7]
[349627060,1737334243147,-3214.83,0.00023287,3]
[349627062,1737334243162,-151.0,0.00023287,7]
[349627065,1737334243173,-151.0,0.00023287,7]
[349627067,1737334243185,-1521.48,0.00023287,3]
[349627070,1737334243196,-430.299434,0.00023287,7]
[349627073,1737334243206,-430.299434,0.00023287,7]
[349627076,1737334243217,-2690.43,0.00023287,3]
[349627079,1737334243228,-698.33,0.00023287,3]
[349627083,1737334243240,-500.0,0.00023287,3]
[349627086,1737334243258,-504.1,0.00023287,3]
[349627090,1737334243269,-500.0,0.00023287,3]
[349627093,1737334243281,-581.13,0.00023287,3]
[349627095,1737334243292,-6085.48,0.00023287,3]
[349627099,1737334243304,-2372.84,0.00023287,3]
[349627101,1737334243316,-629.96283211,0.00023287,3]
[349627103,1737334243327,-151.0,0.00023287,7]
[349627106,1737334243339,-565.49,0.00023287,3]
[349627108,1737334243350,-1261.42,0.00023287,3]
[349627110,1737334243362,-1363.71,0.00023287,3]
[349627115,1737334243374,-446.288733,0.00023287,7]
[349627117,1737334243386,-446.288733,0.00023287,7]
[349627119,1737334243397,-327.296256,0.00023287,7]
[349627122,1737334243409,-327.296256,0.00023287,7]
[349627124,1737334243420,-847.8,0.00023287,3]
[349627127,1737334243431,-151.0,0.00023287,7]